bitfinex-derivatives/quotes_ETHF0:USTF0_20240920
["timestamp","ask_amount","ask_price","bid_price","bid_amount"]
[1726866366003,0.39236,2548.5,2548.1,0.76772]
[1726866366412,3.2078,2548.6,2548.1,0.3753]
[1726866366413,0.39241,2548.3,2548.1,0.3753]
[1726866366606,0.7671,2548.2,2547.9,10.79625]
[1726866366906,0.7671,2548.2,2548.0,0.39244]
[1726866367105,0.7671,2548.2,2547.8,3.6161]
[1726866367308,0.39246,2547.9,2547.6,0.3753]
[1726866367515,3.2078,2548.0,2547.6,0.3753]
[1726866367699,0.39246,2547.9,2547.6,0.3753]
[1726866367899,3.2078,2548.0,2547.4,3.065]
[1726866368101,3.2078,2548.0,2547.3,0.4083]
[1726866368408,3.60025,2548.0,2547.3,3.86583]
[1726866369111,3.60025,2548.0,2547.4,0.39253]
[1726866369320,3.2078,2547.7,2547.2,3.4639]
[1726866369615,0.39253,2547.5,2547.0,3.065]
[1726866369909,0.39254,2547.4,2547.0,3.065]
[1726866370113,0.39252,2547.5,2547.0,3.065]
[1726866370306,0.39252,2547.5,2546.9,0.4047]
[1726866370507,3.2078,2547.4,2547.0,0.39259]
[1726866371017,3.2078,2547.4,2546.8,6.2728]
[1726866371018,0.39258,2547.1,2546.8,3.2078]
[1726866371223,0.39264,2546.8,2546.5,3.2078]
[1726866371514,0.39264,2546.8,2546.3,0.3927]
[1726866371515,3.2078,2546.8,2546.3,0.3927]
[1726866371816,3.2078,2546.8,2546.4,0.39269]
[1726866372002,2.73077689,2547.3,2546.2,6.6779]
[1726866372003,3.2078,2547.1,2546.2,6.6779]
[1726866372203,0.3926,2547.0,2546.5,0.39267]
[1726866372407,3.2078,2547.1,2546.2,6.6779]
[1726866372719,3.2078,2547.1,2546.2,3.6119]
[1726866373016,0.39259,2547.0,2546.4,0.39268]
[1726866373209,3.2078,2547.1,2546.2,6.6779]
[1726866373419,0.39262,2546.9,2546.2,6.6779]
[1726866373611,3.2078,2547.1,2546.7,0.39263]
[1726866374104,0.39257,2547.2,2546.7,0.39263]
[1726866374506,0.8145,2547.3,2546.5,3.2078]
[1726866374709,0.39257,2547.2,2546.5,3.2078]
[1726866375108,0.8145,2547.3,2546.6,0.39266]
[1726866375109,0.39258,2547.1,2546.6,0.39266]
[1726866375710,0.39258,2547.1,2546.5,3.2078]
[1726866376009,0.39257,2547.2,2546.8,0.39262]
[1726866376211,0.39257,2547.2,2546.7,0.39264]
[1726866376511,0.39259,2547.1,2546.6,0.39265]
[1726866377012,0.39257,2547.2,2546.5,6.2738]
[1726866377311,0.39258,2547.1,2546.6,0.39265]
[1726866377518,0.39258,2547.1,2546.7,0.39264]
[1726866377716,0.39257,2547.2,2546.7,0.39264]
[1726866378116,3.2078,2547.1,2546.5,3.2078]
[1726866378321,3.2078,2547.1,2546.2,0.4041]
[1726866378322,3.2078,2546.8,2546.2,0.4041]
[1726866378617,3.60043,2546.8,2546.2,0.4041]
[1726866378815,3.60043,2546.8,2546.3,0.39269]
[1726866379007,3.60043,2546.8,2546.4,0.39268]
[1726866379614,0.39263,2546.8,2546.4,0.39268]
[1726866380005,3.2078,2546.9,2546.2,0.4041]
[1726866380214,0.39263,2546.8,2546.4,3.60047]
[1726866380518,0.39263,2546.8,2546.5,0.39267]
[1726866380921,3.2078,2546.9,2546.5,0.39267]
[1726866381113,3.60042,2546.9,2546.5,0.39267]
[1726866381318,0.39263,2546.8,2546.5,0.39267]
[1726866381920,0.39264,2546.7,2546.4,3.60048]
[1726866382122,0.39265,2546.7,2546.4,3.2078]
[1726866382622,0.39265,2546.7,2546.4,3.60049]
[1726866383015,0.78585,2546.7,2546.4,3.60049]
[1726866383222,0.3932,2546.7,2546.4,3.60049]
[1726866384018,0.3932,2546.7,2546.4,0.39269]
[1726866384227,3.2078,2547.1,2546.6,3.2078]
[1726866384423,4.085,2547.2,2546.9,0.3926]
[1726866384424,4.47757,2547.2,2546.9,0.3926]
[1726866384622,0.39257,2547.2,2546.9,0.3926]
[1726866385431,0.39258,2547.1,2546.8,0.39262]
[1726866386219,3.60038,2547.1,2546.8,0.39262]
[1726866387326,0.39258,2547.2,2546.8,0.39262]
[1726866388828,0.39259,2547.1,2546.7,0.79713]
[1726866389129,3.2078,2547.2,2546.7,0.79713]
[1726866389326,0.39259,2547.1,2546.8,0.39262]
[1726866389525,3.2078,2547.2,2546.7,0.4045]
[1726866389726,0.39265,2546.7,2546.4,4.52369]
[1726866389923,0.39266,2546.6,2546.4,4.131]
[1726866390126,3.2078,2546.9,2546.2,0.4069]
[1726866390127,2.19007,2546.8,2546.2,0.4069]
[1726866390429,2.19007,2546.8,2546.2,0.79961]
[1726866390430,0.39268,2546.5,2546.2,0.79961]
[1726866390625,0.39267,2546.6,2546.3,0.3927]
[1726866392619,1.2085,2546.8,2546.2,0.4069]
[1726866392936,0.39266,2546.6,2546.3,0.39269]
[1726866394122,1.2085,2546.8,2546.3,3.2078]
[1726866394328,7.2928,2547.2,2546.4,0.3787]
[1726866394329,0.4045,2547.1,2546.4,0.3787]
[1726866394528,0.39264,2546.8,2546.4,0.77138]
[1726866394827,0.39263,2546.8,2546.4,0.77138]
[1726866395033,0.39263,2546.8,2546.5,0.39267]
[1726866395332,0.39265,2546.7,2546.4,0.77138]
[1726866395632,3.2078,2546.9,2546.4,0.39268]
[1726866395830,0.39262,2546.8,2546.4,0.39268]
[1726866396128,0.39264,2546.7,2546.4,0.39268]
[1726866396328,3.2078,2546.9,2546.6,0.39265]
[1726866396532,3.60041,2546.9,2546.5,0.39266]
[1726866397428,0.39263,2546.8,2546.4,0.39269]
[1726866398224,3.2078,2546.9,2546.3,3.2078]
[1726866398532,3.2078,2546.9,2546.8,0.39262]
[1726866399333,3.2078,2546.9,2546.7,0.39263]
[1726866399630,3.2078,2546.9,2546.8,0.3923]
[1726866399830,0.4104,2547.5,2546.8,0.3923]
[1726866399831,3.6182,2547.5,2546.9,0.3926]
[1726866400035,4.0089,2547.5,2547.0,0.39259]
[1726866400331,3.5985,2547.5,2547.1,3.60037]
[1726866400535,8.08076,2547.9,2546.9,0.4097]
[1726866400833,8.08076,2547.9,2547.1,3.60037]
[1726866400834,0.78318,2547.8,2547.1,3.60037]
[1726866401025,0.78318,2547.8,2547.1,6.76937]
[1726866401231,0.78318,2547.8,2547.2,0.39256]
[1726866401935,0.3907,2547.8,2547.3,3.2078]
[1726866402129,0.3926,2548.0,2547.4,0.4004]
[1726866402433,0.3907,2548.2,2547.8,3.2078]
[1726866402735,0.3907,2548.2,2547.8,6.3768]
[1726866402932,0.3907,2548.2,2547.9,0.5144]
[1726866403135,3.5985,2548.2,2547.9,0.5144]
[1726866403730,0.3907,2548.2,2547.9,0.5144]
[1726866403929,1.53307689,2549.0,2547.9,0.90684]
[1726866403930,3.2078,2548.8,2547.9,0.90684]
[1726866404138,3.60012,2548.8,2548.0,0.4004]
[1726866405337,3.2078,2548.8,2548.0,0.4004]
[1726866405543,1.1691,2548.9,2548.2,3.2078]
[1726866406541,1.1691,2548.9,2548.1,3.169]
[1726866406840,3.60012,2548.8,2548.1,3.169]
[1726866407432,3.2078,2548.8,2548.1,3.56142]
[1726866407633,3.60012,2548.8,2548.1,3.56142]
[1726866407948,1.1691,2548.9,2548.2,3.2078]
[1726866408136,1.1691,2548.9,2548.3,0.39239]
[1726866408343,1.1691,2548.9,2548.2,3.6002]
[1726866408538,1.1691,2548.9,2548.3,0.39239]
[1726866408834,1.56141,2548.9,2548.2,3.6002]
[1726866409038,1.1691,2548.9,2548.2,0.39241]
[1726866409240,3.60013,2548.8,2548.1,3.56141]
[1726866409443,3.2078,2548.8,2548.1,3.169]
[1726866409633,3.2078,2548.8,2548.1,3.149]
[1726866409835,3.2078,2548.8,2548.4,0.39238]
[1726866410132,3.2078,2548.8,2548.3,3.2078]
[1726866410340,3.2078,2548.8,2548.6,0.39235]
[1726866410751,3.2078,2548.8,2548.5,0.39236]
[1726866411041,3.2078,2548.8,2548.4,0.39237]
[1726866411541,0.7801,2548.9,2548.7,0.39233]
[1726866411755,9.32444766,2549.3,2548.7,0.39232]
[1726866411756,6.41647689,2549.3,2548.7,0.39232]
[1726866412049,0.3766,2549.2,2548.7,0.39232]
[1726866412241,0.3766,2549.2,2548.9,0.3923]
[1726866412550,0.3766,2549.2,2548.9,3.2078]
[1726866412842,0.3766,2549.2,2548.7,0.3868]
[1726866413043,0.3766,2549.2,2548.7,0.77912]
[1726866413442,0.3766,2549.2,2548.7,0.3868]
[1726866413739,0.3766,2549.2,2548.8,3.148]
[1726866415043,0.3766,2549.2,2548.9,0.39229]
[1726866415344,0.3766,2549.2,2548.9,3.60009]
[1726866415937,0.3766,2549.2,2548.9,3.2078]
[1726866416335,0.3766,2549.2,2548.9,3.6001]
[1726866416545,0.3766,2549.2,2548.9,3.2078]
[1726866417038,0.3766,2549.2,2548.9,0.39229]
[1726866417746,0.3766,2549.2,2548.9,3.2078]
[1726866417947,0.3766,2549.2,2548.9,0.39229]
[1726866418637,0.3766,2549.2,2548.8,6.7571]
[1726866418638,0.3766,2549.2,2549.0,0.39229]
[1726866418943,0.3766,2549.2,2548.9,0.39229]
[1726866420149,0.3766,2549.2,2548.9,3.60009]
[1726866421740,0.3766,2549.2,2548.9,0.39229]
[1726866422743,4.2998,2549.2,2548.8,3.2078]
[1726866422956,3.9232,2549.1,2548.8,3.2078]
[1726866423242,0.39228,2549.1,2548.8,3.2078]
[1726866423635,0.76886,2549.2,2548.8,3.2078]
[1726866423839,0.76886,2549.2,2548.4,4.131]
[1726866423840,0.3923,2548.9,2548.4,4.131]
[1726866424039,0.7692,2548.8,2548.4,4.131]
[1726866424444,0.3811,2548.7,2548.4,4.131]
[1726866424947,0.3811,2548.7,2548.3,3.60019]
[1726866424948,3.924,2548.6,2548.3,3.2078]
[1726866425154,0.77344,2548.7,2548.3,3.2078]
[1726866425443,0.3811,2548.7,2548.3,3.2078]
[1726866425838,4.3051,2548.7,2548.3,3.2078]
[1726866426041,3.60019,2548.4,2547.9,0.5144]
[1726866426440,0.3924,2548.3,2547.9,0.5144]
[1726866426639,0.7662,2548.2,2547.9,0.5144]
[1726866426840,1.1545,2548.2,2547.9,0.5144]
[1726866429859,1.54692,2548.2,2547.9,0.5144]
[1726866430549,1.1545,2548.2,2547.9,0.5144]
[1726866430750,0.39235,2548.6,2548.0,0.39243]
[1726866430951,1.55745,2548.6,2548.0,0.39243]
[1726866431750,0.39237,2548.5,2547.9,0.5144]
[1726866431956,3.2078,2548.4,2548.0,0.39243]
[1726866432253,3.2078,2548.4,2547.7,0.3757]
[1726866432457,0.774,2548.6,2548.4,0.39237]
[1726866432645,0.3789,2548.6,2548.5,0.39236]
[1726866432955,0.3955,2548.9,2548.2,3.2078]
[1726866433145,0.3911,2549.1,2548.3,0.7953]
[1726866433449,3.98637,2549.2,2548.5,3.2078]
[1726866433450,0.3863,2549.2,2548.5,3.2078]
[1726866433644,0.3863,2549.2,2548.6,3.148]
[1726866434060,0.3863,2549.2,2548.7,0.39233]
[1726866434355,0.3863,2549.2,2548.8,0.39231]
[1726866435347,0.77856,2549.2,2548.7,0.39232]
[1726866435546,0.3863,2549.2,2548.7,0.39232]
[1726866435746,0.3863,2549.2,2548.8,0.39232]
[1726866436559,0.3863,2549.2,2548.9,0.3923]
[1726866437154,0.3955,2549.3,2548.9,0.3923]
[1726866437856,0.3955,2549.3,2548.8,0.39231]
[1726866438051,0.78775,2549.3,2548.8,0.39231]
[1726866438253,0.39226,2549.2,2548.6,6.3558]
[1726866438457,3.60006,2549.2,2548.7,0.39232]
[1726866438654,0.39229,2549.0,2548.4,3.534]
[1726866438863,3.2078,2549.2,2548.4,3.534]
[1726866438864,0.76531,2548.9,2548.4,3.534]
[1726866439156,0.373,2548.9,2548.5,0.39236]
[1726866439352,0.76531,2548.9,2548.4,3.92637]
[1726866439662,1.14831,2548.9,2548.4,3.92637]
[1726866439950,1.14831,2548.9,2548.5,0.39236]
[1726866440152,0.39232,2548.8,2548.4,3.92637]
[1726866440354,4.35611,2548.9,2548.4,3.92637]
[1726866440748,4.35611,2548.9,2548.4,0.90737]
[1726866440950,3.9638,2548.9,2548.4,0.515]
[1726866441354,0.39234,2548.7,2548.4,0.515]
[1726866441558,3.9638,2548.9,2548.4,0.515]
[1726866441753,0.39233,2548.7,2548.4,0.515]
[1726866442451,0.39236,2548.5,2548.4,0.515]
[1726866442961,4.31636,2548.5,2548.4,0.515]
[1726866443262,5.84943689,2548.5,2548.4,0.515]
[1726866444155,11.84943689,2548.5,2548.4,0.515]
[1726866444464,10.31636,2548.5,2548.4,0.515]
[1726866444658,0.3924,2548.3,2547.8,0.78096]
[1726866444853,0.3924,2548.3,2547.8,0.3885]
[1726866444854,0.39242,2548.1,2547.8,0.3885]
[1726866445254,1.92834657,2548.1,2547.6,3.60029]
[1726866445449,0.39246,2547.9,2547.6,3.2078]
[1726866445652,1.92836657,2547.9,2547.6,3.2078]
[1726866445953,1.53590657,2547.9,2547.6,3.2078]
[1726866446362,1.53590657,2547.8,2547.6,3.60029]
[1726866446563,1.53590657,2547.9,2547.6,3.60029]
[1726866447364,1.53590657,2547.8,2547.6,3.60029]
[1726866447555,0.39245,2548.0,2547.6,3.2078]
[1726866447556,0.39246,2547.9,2547.6,3.2078]
[1726866449455,0.39247,2547.8,2547.5,0.3831]
[1726866449762,1.91890657,2548.0,2547.5,0.3831]
[1726866449763,0.39249,2547.7,2547.5,0.3831]
[1726866450168,0.39248,2547.8,2547.5,0.3831]
[1726866450667,0.39247,2547.8,2547.5,0.3831]
[1726866451160,1.93840657,2547.9,2547.5,0.3831]
[1726866451363,0.3925,2547.6,2547.4,0.3906]
[1726866451562,1.53590657,2547.7,2547.4,0.3906]
[1726866451865,0.39253,2547.4,2547.2,0.3747]
[1726866452562,0.39255,2547.4,2547.2,0.3747]
[1726866452869,1.53590657,2547.7,2547.3,0.39254]
[1726866453064,0.39249,2547.7,2547.3,0.39254]
[1726866453267,0.39249,2547.7,2547.2,0.76726]
[1726866453756,0.3925,2547.6,2547.2,0.76726]
[1726866454162,0.3925,2547.6,2547.2,0.3747]
[1726866455264,0.3925,2547.6,2547.2,0.76726]
[1726866456473,0.39252,2547.5,2547.2,0.3747]
[1726866457373,4.74370657,2547.8,2547.2,0.76726]
[1726866457374,0.39251,2547.6,2547.2,0.76726]
[1726866459670,0.39252,2547.5,2547.2,0.76726]
[1726866462490,3.2078,2547.8,2547.2,0.76725]
[1726866462688,0.39252,2547.5,2547.2,0.76725]
[1726866464385,3.2078,2547.8,2547.2,0.3747]
[1726866464587,0.39252,2547.6,2547.2,0.3747]
[1726866464787,0.39252,2547.6,2547.3,0.39254]
[1726866465388,0.39252,2547.5,2547.2,0.76725]
[1726866465785,0.39252,2547.5,2547.3,0.39255]
[1726866465992,3.2078,2547.8,2547.5,0.39251]
[1726866466192,3.60028,2547.8,2547.5,0.39251]
[1726866466398,0.39249,2547.7,2547.4,0.77683]
[1726866466595,3.60028,2547.8,2547.4,0.77683]
[1726866466991,0.39249,2547.7,2547.4,0.77683]
[1726866467599,3.60028,2547.8,2547.5,0.39252]
[1726866468499,3.60028,2547.8,2547.4,0.3843]
[1726866468500,0.39249,2547.7,2547.4,0.77683]
[1726866468689,0.39249,2547.7,2547.4,0.3843]
[1726866468889,0.39249,2547.7,2547.4,0.77683]
[1726866470199,0.39249,2547.7,2547.4,0.3843]
[1726866470399,3.2078,2547.8,2547.4,0.3843]
[1726866470400,0.3925,2547.6,2547.4,0.3843]
[1726866470586,0.39252,2547.5,2547.2,0.76726]
[1726866470792,0.39252,2547.5,2547.2,1.15166]
[1726866470986,0.39252,2547.5,2547.2,0.7591]
[1726866471197,0.39252,2547.5,2547.2,1.15166]
[1726866473895,0.39255,2547.3,2547.2,0.7591]
[1726866474102,0.39257,2547.2,2546.8,0.39262]
[1726866474393,0.39259,2547.1,2546.9,0.4026]
[1726866475098,0.39259,2547.0,2546.9,0.4026]
[1726866475497,0.39262,2546.9,2546.5,0.4026]
[1726866475794,0.79792,2546.9,2546.5,0.7758]
[1726866476395,0.79792,2546.9,2546.5,1.16847]
[1726866476701,0.79792,2546.9,2546.5,0.7758]
[1726866477099,0.79792,2546.9,2546.5,1.16847]
[1726866477701,0.4053,2546.9,2546.5,1.16847]
[1726866478098,0.79791,2546.9,2546.5,0.39267]
[1726866478296,0.4053,2546.9,2546.5,0.39266]
[1726866479003,0.79791,2546.9,2546.5,0.39266]
[1726866479306,0.4053,2546.9,2546.5,0.39266]
[1726866479502,3.6131,2546.9,2546.5,0.39266]
[1726866480406,4.00571,2546.9,2546.5,0.39266]
[1726866480705,0.39264,2546.8,2546.4,3.2078]
[1726866480904,0.3771,2546.7,2546.4,3.2078]
[1726866481105,0.3771,2546.7,2546.4,3.60048]
[1726866481301,0.3771,2546.7,2546.4,0.39268]
[1726866481904,0.3771,2546.7,2546.2,0.7601]
[1726866482206,0.39268,2546.5,2546.1,3.60053]
[1726866482401,0.39268,2546.5,2546.1,4.36063]
[1726866483010,0.39268,2546.5,2546.2,0.39272]
[1726866483011,0.4122,2546.4,2546.2,0.39272]
[1726866486112,3.2078,2546.6,2546.5,0.39267]
[1726866486313,3.2078,2546.9,2546.8,0.39262]
[1726866486508,0.3901,2547.1,2546.8,0.39262]
[1726866486813,0.3901,2547.1,2546.7,0.39263]
[1726866487310,0.78268,2547.1,2546.7,0.39263]
[1726866487514,0.3901,2547.1,2546.7,0.39263]
[1726866487718,0.78268,2547.1,2546.7,0.39263]
[1726866490421,2.31858657,2547.1,2546.7,0.39263]
[1726866492614,1.92600657,2547.1,2546.7,0.39263]
[1726866492920,2.31859657,2547.1,2546.7,0.39263]
[1726866493118,1.53590657,2547.0,2546.7,0.39263]
[1726866494019,0.39261,2546.9,2546.6,0.39265]
[1726866494228,5.13631657,2546.9,2546.5,0.79656]
[1726866494522,0.3918,2546.8,2546.6,0.39265]
[1726866495220,0.3918,2546.8,2546.7,0.39264]
[1726866495822,0.3918,2546.8,2546.6,0.39264]
[1726866496819,0.3918,2546.8,2546.6,0.39265]
[1726866497122,0.3918,2546.8,2546.3,4.30389355]
[1726866497319,0.4027,2546.7,2546.3,4.30389355]
[1726866497524,0.3917,2546.6,2546.3,4.30389355]
[1726866498225,0.3917,2546.6,2546.5,0.39267]
[1726866500924,1.53590657,2547.0,2546.8,0.39261]
[1726866501320,1.53590657,2547.1,2546.8,3.9264]
[1726866501615,1.53590657,2547.4,2547.0,3.2078]
[1726866501817,3.2078,2547.6,2547.3,0.39254]
[1726866501818,1.53590657,2547.6,2547.3,0.39254]
[1726866502025,1.53590657,2547.6,2547.1,1.82359355]
[1726866502326,1.93370657,2547.7,2547.4,0.39253]
[1726866505230,1.93370657,2547.7,2547.3,0.39254]
[1726866506715,0.3848,2547.6,2547.3,0.39254]
[1726866507127,0.3848,2547.6,2547.1,1.82359355]
[1726866507128,0.3848,2547.6,2547.4,0.39253]
[1726866509621,0.3978,2547.7,2547.4,2.901]
[1726866509827,0.3978,2547.7,2547.5,0.39252]
[1726866511233,0.3978,2547.7,2547.6,0.3925]
[1726866515224,1.53590657,2548.1,2547.6,7.1326]
[1726866515424,0.7505,2548.1,2548.0,0.39244]
[1726866515836,1.93390657,2548.3,2547.9,2.901]
[1726866516029,1.93390657,2548.3,2548.0,0.39243]
[1726866516224,1.93390657,2548.3,2548.1,0.39242]
[1726866516755,1.93390657,2548.3,2548.2,0.39241]
[1726866517237,0.398,2548.3,2548.1,0.39241]
[1726866518739,0.398,2548.3,2548.2,0.39241]
[1726866518935,0.7505,2548.5,2548.0,0.6946]
[1726866519137,0.7505,2548.5,2548.2,0.3924]
[1726866519449,1.53651465,2548.9,2548.2,3.2078]
[1726866519631,1.1605,2548.8,2548.3,0.39238]
[1726866519835,1.1605,2548.8,2548.3,0.39239]
[1726866520030,1.1605,2548.8,2548.4,2.901]
[1726866520833,1.1605,2548.8,2548.3,2.901]
[1726866521034,1.1605,2548.8,2548.3,3.29339]
[1726866521336,1.1605,2548.8,2548.5,0.39235]
[1726866521741,1.1605,2548.8,2548.6,0.39234]
[1726866522340,1.1605,2548.8,2548.5,0.7586]
[1726866522536,4.74431465,2549.3,2548.6,0.39235]
[1726866522537,0.4061,2549.2,2548.6,0.39235]
[1726866522843,1.2174,2549.2,2548.8,3.2078]
[1726866523037,1.2174,2549.2,2549.1,0.39227]
[1726866523237,4.426,2549.6,2549.1,0.39227]
[1726866523743,4.426,2549.6,2548.9,0.3923]
[1726866523930,4.426,2549.6,2549.0,0.39228]
[1726866524739,1.2182,2549.6,2549.3,0.39224]
[1726866524931,1.2182,2549.6,2549.2,0.39224]
[1726866525131,1.2182,2549.6,2549.1,3.60006]
[1726866525335,1.2182,2549.6,2549.1,0.39226]
[1726866525536,1.2182,2549.6,2549.1,3.60006]
[1726866526137,1.2182,2549.6,2549.0,1.18928]
[1726866526342,4.426,2549.6,2549.0,0.39228]
[1726866526541,4.426,2549.6,2548.8,6.1078]
[1726866526542,4.426,2549.6,2548.9,0.39229]
[1726866526740,4.426,2549.6,2548.8,6.1078]
[1726866526945,4.426,2549.6,2548.8,3.2078]
[1726866527250,4.81819,2549.6,2548.9,2.899]
[1726866527651,4.81819,2549.6,2548.9,3.2913]
[1726866527851,4.81819,2549.6,2548.9,2.899]
[1726866528040,4.81819,2549.6,2548.9,3.2913]
[1726866528345,4.426,2549.6,2548.9,2.899]
[1726866528546,4.8182,2549.6,2548.9,3.2913]
[1726866528942,4.426,2549.6,2548.8,3.2078]
[1726866529141,4.426,2549.6,2549.1,0.39227]
[1726866530444,4.426,2549.6,2548.9,2.899]
[1726866530943,3.2078,2549.9,2549.1,3.2078]
[1726866531141,3.2078,2549.9,2549.6,0.39219]
[1726866531751,3.2078,2549.9,2549.7,0.39217]
[1726866532243,3.2078,2549.9,2549.5,2.899]
[1726866532449,3.2078,2549.9,2549.7,0.39217]
[1726866532835,3.2078,2549.9,2549.5,2.899]
[1726866533049,3.2078,2549.9,2549.7,0.39217]
[1726866533853,3.2078,2549.9,2549.7,2.898]
[1726866534045,0.7598,2549.8,2549.7,2.898]
[1726866534245,0.7598,2549.8,2549.6,3.29019]
[1726866534641,0.3829,2549.8,2549.7,0.39218]
[1726866535060,0.3829,2549.8,2549.7,4.31378]
[1726866537049,3.2078,2549.9,2549.7,3.9216]
[1726866537254,3.2078,2549.9,2549.7,0.39218]
[1726866537646,3.2078,2549.9,2549.8,0.39216]
[1726866538249,0.39207,2550.4,2549.8,13.1294]
[1726866538250,3.2078,2550.4,2549.8,13.1294]
[1726866538455,3.6051,2550.4,2550.2,0.39209]
[1726866538749,0.3973,2550.4,2550.2,0.39209]
[1726866539348,0.3973,2550.4,2550.2,0.3921]
[1726866539744,0.3973,2550.4,2550.3,0.39209]
[1726866540544,0.3973,2550.4,2550.3,3.59989]
[1726866542355,3.2078,2550.8,2550.3,13.1286]
[1726866542555,3.2078,2550.8,2550.4,3.29006]
[1726866542751,3.2078,2550.8,2550.3,4.00308]
[1726866542958,3.2078,2550.8,2550.4,2.898]
[1726866543460,3.2078,2550.8,2550.3,3.59988]
[1726866543461,3.59982,2550.8,2550.3,3.2078]
[1726866543759,3.2078,2550.5,2550.1,3.29012]
[1726866543952,1.2125,2550.4,2550.1,2.898]
[1726866544161,1.2125,2550.4,2550.1,3.29011]
[1726866544354,1.2125,2550.4,2550.2,0.3921]
[1726866544552,1.2125,2550.4,2549.7,3.2078]
[1726866544752,1.2125,2550.4,2548.8,0.98077]
[1726866544753,3.2078,2550.0,2549.2,0.8071]
[1726866545058,3.2078,2549.7,2549.2,2.898]
[1726866545249,0.8242,2549.6,2549.2,2.898]
[1726866545452,0.8242,2549.6,2549.2,3.29025]
[1726866545759,0.8242,2549.6,2549.2,2.898]
[1726866545949,3.2078,2549.4,2548.5,3.2078]
[1726866546154,3.2078,2549.4,2548.7,0.39232]
[1726866546459,0.4029,2549.3,2548.9,0.3923]
[1726866546958,0.4029,2549.3,2548.8,0.39231]
[1726866547153,0.4029,2549.3,2548.6,3.2078]
[1726866547353,3.2078,2549.1,2548.6,3.2078]
[1726866547662,0.4117,2549.0,2548.6,3.2078]
[1726866547861,0.8242,2549.0,2548.6,0.3138]
[1726866548263,0.8242,2549.0,2548.6,3.5216]
[1726866548452,0.8242,2549.0,2548.6,0.70615]
[1726866548847,0.8242,2549.0,2548.6,0.3138]
[1726866549561,3.9232,2548.9,2548.6,0.3138]
[1726866549863,3.2078,2548.8,2548.6,0.3138]
[1726866550067,3.9232,2548.7,2548.6,0.3138]
[1726866550363,4.298,2548.7,2548.6,0.3138]
[1726866552452,0.3748,2548.7,2548.6,0.3138]
[1726866553048,0.8242,2549.0,2548.6,0.3138]
[1726866553049,0.4117,2549.0,2548.6,7.52814]
[1726866553252,0.4117,2549.0,2548.7,0.39233]
[1726866553461,0.4117,2549.0,2548.7,3.29033]
[1726866554859,0.4117,2549.0,2548.6,0.3138]
[1726866555049,0.4117,2549.0,2548.7,2.899]
[1726866556256,0.7877,2549.0,2548.7,2.899]
[1726866556865,3.2078,2548.8,2548.6,0.3138]
[1726866557057,3.2078,2548.8,2547.9,0.39244]
[1726866557258,3.2078,2548.4,2547.7,3.345]
[1726866557458,3.2078,2548.1,2547.5,0.3773]
[1726866557756,3.60023,2548.1,2547.5,0.76981]
[1726866557955,0.39246,2547.9,2547.3,2.972]
[1726866558162,0.39246,2547.9,2547.3,3.36454]
[1726866558460,3.60023,2548.1,2547.5,0.39251]
[1726866558657,0.39244,2548.0,2547.4,0.39253]
[1726866558859,0.39244,2548.0,2547.5,0.2259]
[1726866559274,3.2078,2548.1,2547.8,0.39246]
[1726866559586,0.7944,2548.3,2547.6,0.39249]
[1726866559587,0.39242,2548.2,2547.6,0.39249]
[1726866559860,3.2078,2548.1,2547.6,0.39249]
[1726866560055,3.2078,2548.1,2547.7,0.39249]
[1726866560255,3.6045,2548.1,2547.7,0.39249]
[1726866560466,0.3967,2548.1,2547.7,0.39249]
[1726866560664,3.6045,2548.1,2547.7,0.39249]
[1726866561056,3.99693,2548.1,2547.6,0.3925]
[1726866561265,3.6045,2548.1,2547.6,0.3925]
[1726866562263,3.6045,2548.1,2547.7,0.39249]
[1726866562562,3.99693,2548.1,2547.6,0.3925]
[1726866562766,3.6045,2548.1,2547.5,3.59141]
[1726866563060,3.99693,2548.1,2547.6,0.39249]
[1726866563759,3.99693,2548.1,2547.7,0.39249]
[1726866563760,3.6045,2548.1,2547.7,0.39249]
[1726866565859,3.99693,2548.1,2547.7,0.39249]
[1726866566059,3.6045,2548.1,2547.5,3.1989]
[1726866566355,3.2078,2548.1,2547.5,3.6016]
[1726866566559,3.2078,2548.1,2548.0,0.39244]
[1726866566765,0.7944,2548.3,2548.0,0.39244]
[1726866566965,0.7944,2548.3,2547.9,0.39245]
[1726866567767,1.1868,2548.3,2547.9,0.39245]
[1726866573664,0.39242,2548.2,2547.9,0.39245]
[1726866574167,0.39246,2547.9,2547.6,3.3655]
[1726866574368,3.6106,2548.1,2547.5,3.6016]
[1726866574561,0.39246,2547.9,2547.6,0.39249]
[1726866574966,0.39246,2547.9,2547.7,0.39248]
[1726866575264,0.39246,2547.9,2547.6,0.39249]
[1726866575466,0.39247,2547.8,2547.5,3.99411]
[1726866575660,3.6106,2548.1,2547.6,0.3925]
[1726866575661,0.39246,2547.9,2547.6,0.3925]
[1726866576462,0.39247,2547.8,2547.6,0.3925]
[1726866576668,0.39247,2547.8,2547.5,3.99411]
[1726866576964,0.39247,2547.8,2547.5,0.2259]
[1726866576965,3.2078,2547.8,2547.5,0.2259]
[1726866577171,0.80459,2547.7,2547.5,0.2259]
[1726866578376,0.80459,2547.7,2547.5,0.61842]
[1726866578972,0.4121,2547.7,2547.6,0.3925]
[1726866579277,0.79945,2548.0,2547.6,0.39249]